fUSD/lending_fUSD_20250209
["ID","MTS","AMOUNT","RATE_DAILY","PERIOD"]
[352442674,1739110257137,-500.0,0.00010756,2]
[352442675,1739110257147,-500.0,0.00010756,2]
[352442676,1739110257157,-500.0,0.00010756,2]
[352442677,1739110257167,-500.0,0.00010756,2]
[352442678,1739110257176,-500.0,0.00010756,2]
[352442679,1739110257186,-219.17301278,0.00010756,2]
[352442680,1739110257196,-533.87475642,0.00010756,2]
[352442681,1739110257205,-500.0,0.00010756,2]
[352442682,1739110257215,-500.0,0.00010756,2]
[352442683,1739110257225,-500.0,0.00010756,2]
[352442684,1739110257234,-500.0,0.00010756,2]
[352442685,1739110257244,-500.0,0.00010756,2]
[352442686,1739110257253,-500.0,0.00010756,2]
[352442687,1739110257262,-500.0,0.00010756,2]
[352442688,1739110257272,-500.0,0.00010756,2]
[352442689,1739110257281,-500.0,0.00010756,2]
[352442690,1739110257291,-500.0,0.00010756,2]
[352442691,1739110257300,-500.0,0.00010756,2]
[352442692,1739110257309,-500.0,0.00010756,2]
[352442693,1739110257319,-500.0,0.00010756,2]
[352442694,1739110257328,-500.0,0.00010756,2]
[352442695,1739110257337,-500.0,0.00010756,2]
[352442696,1739110257346,-500.0,0.00010756,2]
[352442697,1739110257355,-500.0,0.00010756,2]
[352442698,1739110257365,-500.0,0.00010756,2]
[352442699,1739110257374,-500.0,0.00010756,2]
[352442700,1739110257383,-500.0,0.00010756,2]
[352442701,1739110257393,-500.0,0.00010756,2]
[352442702,1739110257402,-500.0,0.00010756,2]
[352442703,1739110257412,-510.02626075,0.00010756,2]
[352442704,1739110257421,-500.0,0.00010756,2]
[352442705,1739110257430,-500.0,0.00010756,2]
[352442706,1739110257441,-500.0,0.00010756,2]
[352442707,1739110257451,-500.0,0.00010756,2]
[352442708,1739110257462,-500.0,0.00010756,2]
[352442709,1739110257472,-500.0,0.00010756,2]
[352442710,1739110257483,-500.0,0.00010756,2]
[352442711,1739110257493,-500.0,0.00010756,2]
[352442712,1739110257503,-527.82940212,0.00010756,2]
[352442713,1739110257512,-387.51978503,0.00010756,2]
[352442714,1739110257522,-500.0,0.00010756,2]
[352442715,1739110257533,-500.0,0.00010756,2]
[352442716,1739110257543,-535.59311012,0.00010756,2]
[352442717,1739110257552,-500.0,0.00010756,2]
[352442718,1739110257561,-500.0,0.00010756,2]
[352442719,1739110257571,-500.0,0.00010756,2]
[352442720,1739110257580,-500.0,0.00010756,2]
[352442721,1739110257589,-500.0,0.00010756,2]
[352442722,1739110257598,-500.0,0.00010756,2]
[352442723,1739110257607,-373.63,0.00010756,2]
[352442724,1739110257616,-211.8445005,0.00010757,2]
[352442725,1739110257626,-4022.13869,0.00010757,2]
[352442726,1739110257636,-4386.514,0.00010759,2]
[352442727,1739110257647,-245.109,0.00010759,2]
[352442728,1739110257657,-2021.0,0.00010815,2]
[352442729,1739110257667,-638.0,0.00010815,2]
[352442730,1739110257676,-569.0,0.00010815,2]
[352442731,1739110257685,-1827.0,0.00010815,2]
[352442732,1739110257695,-2954.0,0.00010815,2]
[352442733,1739110257704,-539.0,0.00010815,2]
[352442734,1739110257713,-3913.0,0.00010815,2]
[352442735,1739110257723,-388.934,0.00010815,2]
[352442736,1739110257732,-150.0,0.00010815,2]
[352442737,1739110257741,-1108.0,0.00010815,2]
[352442738,1739110257751,-1000.0,0.00010817,2]
[352442739,1739110257760,-302.72,0.00010822,2]
[352442740,1739110257770,-522.37,0.00010891,2]
[352442741,1739110257779,-500.0,0.00010891,2]
[352442742,1739110257788,-819.55,0.00010891,2]
[352442743,1739110257797,-978.83,0.00010891,2]
[352442744,1739110257808,-697.85,0.00010891,2]
[352442745,1739110257817,-1505.73,0.00010891,2]
[352442746,1739110257826,-658.11,0.00010891,2]
[352442747,1739110257836,-500.0,0.00010891,2]
[352442748,1739110257845,-500.0,0.00010891,2]
[352442749,1739110257854,-500.0,0.00010891,2]
[352442750,1739110257864,-958.54,0.00010891,2]
[352442751,1739110257873,-500.0,0.00010891,2]
[352442752,1739110257882,-560.49,0.00010891,2]
[352442753,1739110257894,-865.05,0.00010891,2]
[352442754,1739110257903,-534.32,0.00010891,2]
[352442755,1739110257912,-500.0,0.00010891,2]
[352442756,1739110257921,-584.18,0.00010891,2]
[352442757,1739110257931,-561.91,0.00010891,2]
[352442758,1739110257940,-572.89,0.00010891,2]
[352442759,1739110257949,-843.45,0.00010891,2]
[352442760,1739110257958,-500.0,0.00010891,2]
[352442761,1739110257970,-565.45,0.00010891,2]
[352442762,1739110257983,-500.0,0.00010891,2]
[352442763,1739110257996,-619.19,0.00010891,2]
[352442764,1739110258007,-632.95,0.00010891,2]
[352442765,1739110258018,-659.31,0.00010891,2]
[352442766,1739110258029,-658.72,0.00010891,2]
[352442767,1739110258040,-804.67,0.00010891,2]
[352442768,1739110258052,-675.09,0.00010891,2]
[352442769,1739110258068,-768.98,0.00010891,2]
[352442770,1739110258080,-574.59,0.00010891,2]
[352442771,1739110258092,-1000.0,0.00010891,2]
[352442772,1739110258104,-785.54,0.00010891,2]
[352442773,1739110258117,-706.79,0.00010891,2]
[352442774,1739110258128,-500.0,0.00010891,2]
[352442775,1739110258140,-520.91,0.00010891,2]
[352442776,1739110258152,-500.0,0.00010891,2]
[352442777,1739110258162,-687.12,0.00010891,2]
[352442778,1739110258172,-500.0,0.00010891,2]
[352442779,1739110258184,-500.0,0.00010891,2]
[352442780,1739110258196,-500.0,0.00010891,2]
[352442781,1739110258208,-500.0,0.00010891,2]
[352442782,1739110258219,-500.0,0.00010891,2]
[352442783,1739110258232,-500.0,0.00010891,2]
[352442784,1739110258243,-814.05,0.00010891,2]
[352442785,1739110258256,-500.0,0.00010891,2]
[352442786,1739110258268,-500.0,0.00010891,2]
[352442787,1739110258280,-500.0,0.00010891,2]
[352442788,1739110258291,-500.0,0.00010891,2]
[352442789,1739110258303,-500.0,0.00010891,2]
[352442790,1739110258315,-623.38,0.00010891,2]
[352442791,1739110258327,-795.3,0.00010891,2]
[352442792,1739110258338,-500.0,0.00010891,2]
[352442793,1739110258350,-500.0,0.00010892,2]
[352442794,1739110258362,-500.0,0.00010892,2]
[352442795,1739110258372,-500.0,0.00010892,2]
[352442796,1739110258385,-500.0,0.00010892,2]
[352442797,1739110258396,-500.0,0.00010892,2]
[352442798,1739110258410,-500.0,0.00010892,2]
[352442799,1739110258422,-500.0,0.00010892,2]
[352442800,1739110258433,-500.0,0.00010892,2]
[352442801,1739110258444,-500.0,0.00010892,2]
[352442802,1739110258455,-500.0,0.00010892,2]
[352442803,1739110258465,-500.0,0.00010892,2]
[352442804,1739110258476,-500.0,0.00010892,2]
[352442805,1739110258486,-321.85,0.00010892,2]
[352442806,1739110258498,-500.0,0.00010892,2]
[352442807,1739110258511,-500.0,0.00010892,2]
[352442808,1739110258522,-500.0,0.00010892,2]
[352442809,1739110258532,-500.0,0.00010892,2]
[352442810,1739110258542,-853.06,0.00010892,2]
[352442811,1739110258552,-500.0,0.00010892,2]
[352442812,1739110258563,-500.0,0.00010892,2]
[352442813,1739110258574,-500.0,0.00010892,2]
[352442814,1739110258587,-1000.0,0.00010892,2]
[352442815,1739110258600,-500.0,0.00010892,2]
[352442816,1739110258610,-1000.0,0.00010892,2]
[352442817,1739110258621,-1000.0,0.00010892,2]
[352442818,1739110258631,-500.0,0.00010892,2]
[352442819,1739110258641,-500.0,0.00010892,2]
[352442820,1739110258653,-500.0,0.00010892,2]
[352442821,1739110258665,-500.0,0.00010892,2]
[352442822,1739110258676,-508.56828581,0.00010892,2]
[352442823,1739110258687,-500.0,0.00010892,2]
[352442824,1739110258697,-500.0,0.00010892,2]
[352442825,1739110258708,-500.0,0.00010892,2]
[352442826,1739110258719,-167.67702223,0.00010892,2]
[352442827,1739110258730,-500.0,0.00010892,2]
[352442828,1739110258741,-500.0,0.00010892,2]
[352442829,1739110258752,-500.0,0.00010892,2]
[352442830,1739110258763,-500.0,0.00010892,2]
[352442831,1739110258773,-500.0,0.00010892,2]
[352442832,1739110258784,-500.0,0.00010892,2]
[352442833,1739110258795,-500.0,0.00010892,2]
[352442834,1739110258806,-500.0,0.00010892,2]
[352442835,1739110258816,-500.0,0.00010892,2]
[352442836,1739110258827,-500.0,0.00010892,2]
[352442837,1739110258838,-500.0,0.00010892,2]
[352442838,1739110258848,-500.0,0.00010892,2]
[352442839,1739110258859,-500.0,0.00010892,2]
[352442840,1739110258870,-500.0,0.00010892,2]
[352442841,1739110258881,-500.0,0.00010892,2]
[352442842,1739110258891,-500.0,0.00010892,2]
[352442843,1739110258902,-500.0,0.00010892,2]
[352442844,1739110258914,-434.86384623,0.00010892,2]
[352442845,1739110258925,-500.0,0.00010892,2]
[352442846,1739110258936,-500.0,0.00010892,2]
[352442847,1739110258947,-500.0,0.00010892,2]
[352442848,1739110258958,-500.0,0.00010892,2]
[352442849,1739110258968,-553.844768,0.00010892,2]
[352442850,1739110258979,-500.0,0.00010892,2]
[352442851,1739110258990,-500.0,0.00010892,2]
[352442852,1739110259001,-500.0,0.00010892,2]
[352442853,1739110259012,-500.0,0.00010892,2]
[352442854,1739110259022,-500.0,0.00010892,2]
[352442855,1739110259034,-500.0,0.00010892,2]
[352442856,1739110259045,-500.0,0.00010892,2]
[352442857,1739110259056,-635.626125,0.00010892,2]
[352442858,1739110259070,-500.0,0.00010892,2]
[352442859,1739110259081,-500.0,0.00010892,2]
[352442860,1739110259093,-500.0,0.00010892,2]
[352442861,1739110259104,-500.0,0.00010892,2]
[352442862,1739110259115,-500.0,0.00010892,2]
[352442863,1739110259126,-500.0,0.00010892,2]
[352442864,1739110259140,-500.0,0.00010892,2]
[352442865,1739110259151,-500.0,0.00010892,2]
[352442866,1739110259162,-500.0,0.00010892,2]
[352442867,1739110259173,-500.0,0.00010892,2]
[352442868,1739110259184,-500.0,0.00010892,2]
[352442869,1739110259196,-500.0,0.00010892,2]
[352442870,1739110259206,-500.0,0.00010892,2]
[352442871,1739110259217,-500.0,0.00010892,2]
[352442872,1739110259228,-500.0,0.00010892,2]
[352442873,1739110259239,-500.0,0.00010892,2]
[352442874,1739110259250,-393.55,0.00010892,2]
[352442875,1739110259260,-500.0,0.00010892,2]
[352442876,1739110259271,-166.78798828,0.00010892,2]
[352442877,1739110259281,-500.0,0.00010892,2]
[352442878,1739110259292,-544.71883941,0.00010892,2]
[352442879,1739110259303,-500.0,0.00010892,2]
[352442880,1739110259314,-155.413122,0.00010892,2]
[352442881,1739110259324,-500.0,0.00010892,2]
[352442882,1739110259335,-580.19,0.00010892,2]
[352442883,1739110259345,-500.0,0.00010892,2]
[352442884,1739110259356,-500.0,0.00010892,2]
[352442885,1739110259369,-500.0,0.00010892,2]
[352442886,1739110259380,-500.0,0.00010892,2]
[352442887,1739110259391,-500.0,0.00010892,2]
[352442888,1739110259401,-500.0,0.00010892,2]
[352442889,1739110259412,-500.0,0.00010892,2]
[352442890,1739110259422,-500.0,0.00010892,2]
[352442891,1739110259433,-500.0,0.00010892,2]
[352442892,1739110259444,-500.0,0.00010892,2]
[352442893,1739110259455,-500.0,0.00010892,2]
[352442894,1739110259466,-500.0,0.00010892,2]
[352442895,1739110259478,-500.0,0.00010892,2]
[352442896,1739110259489,-500.0,0.00010892,2]
[352442897,1739110259500,-500.0,0.00010892,2]
[352442898,1739110259511,-500.0,0.00010892,2]
[352442899,1739110259522,-536.8,0.00010892,2]
[352442900,1739110259532,-500.0,0.00010892,2]
[352442901,1739110259543,-500.0,0.00010892,2]
[352442902,1739110259554,-500.0,0.00010892,2]
[352442903,1739110259565,-500.0,0.00010892,2]
[352442904,1739110259576,-500.0,0.00010892,2]
[352442905,1739110259587,-224.25815804,0.00010892,2]
[352442906,1739110259598,-500.0,0.00010892,2]
[352442907,1739110259608,-500.0,0.00010892,2]
[352442908,1739110259619,-500.0,0.00010892,2]
[352442909,1739110259629,-317.50264656,0.00010892,2]
[352442910,1739110259640,-500.0,0.00010892,2]
[352442911,1739110259651,-500.0,0.00010892,2]
[352442912,1739110259662,-500.0,0.00010892,2]
[352442913,1739110259673,-500.0,0.00010892,2]
[352442914,1739110259683,-500.0,0.00010892,2]
[352442915,1739110259694,-500.0,0.00010892,2]
[352442916,1739110259705,-500.0,0.00010892,2]
[352442917,1739110259716,-500.0,0.00010892,2]
[352442918,1739110259727,-618.54,0.00010892,2]
[352442919,1739110259738,-500.0,0.00010892,2]
[352442920,1739110259749,-500.0,0.00010892,2]
[352442921,1739110259759,-500.0,0.00010892,2]
[352442922,1739110259770,-500.0,0.00010892,2]
[352442923,1739110259781,-500.0,0.00010892,2]
[352442924,1739110259792,-500.0,0.00010892,2]
[352442925,1739110259802,-511.94,0.00010892,2]
[352442926,1739110259813,-500.0,0.00010892,2]
[352442927,1739110259824,-623.47,0.00010892,2]
[352442928,1739110259834,-500.0,0.00010892,2]
[352442929,1739110259844,-500.0,0.00010892,2]
[352442930,1739110259855,-500.0,0.00010892,2]
[352442931,1739110259866,-500.0,0.00010892,2]
[352442932,1739110259877,-500.0,0.00010892,2]
[352442933,1739110259887,-500.0,0.00010892,2]
[352442934,1739110259898,-168.70388458,0.00010892,2]
[352442935,1739110259909,-750.53,0.00010892,2]
[352442936,1739110259919,-500.0,0.00010892,2]
[352442937,1739110259930,-500.0,0.00010892,2]
[352442938,1739110259941,-500.0,0.00010892,2]
[352442939,1739110259951,-500.0,0.00010892,2]
[352442940,1739110259961,-500.0,0.00010892,2]
[352442941,1739110259972,-505.40691146,0.00010892,2]
[352442942,1739110259983,-500.0,0.00010892,2]
[352442943,1739110259994,-500.0,0.00010892,2]
[352442944,1739110260005,-500.0,0.00010892,2]
[352442945,1739110260016,-500.0,0.00010892,2]
[352442946,1739110260026,-500.0,0.00010892,2]
[352442947,1739110260037,-500.0,0.00010892,2]
[352442948,1739110260047,-500.0,0.00010892,2]
[352442949,1739110260060,-500.0,0.00010892,2]
[352442950,1739110260071,-500.0,0.00010892,2]
[352442951,1739110260082,-500.0,0.00010892,2]
[352442952,1739110260093,-511.54,0.00010892,2]
[352442953,1739110260103,-500.0,0.00010892,2]
[352442954,1739110260115,-640.93,0.00010892,2]
[352442955,1739110260126,-500.0,0.00010892,2]
[352442956,1739110260138,-500.0,0.00010892,2]
[352442957,1739110260148,-500.0,0.00010892,2]
[352442958,1739110260159,-500.0,0.00010892,2]
[352442959,1739110260169,-500.0,0.00010892,2]
[352442960,1739110260180,-537.48,0.00010892,2]
[352442961,1739110260191,-500.0,0.00010892,2]
[352442962,1739110260202,-500.0,0.00010892,2]
[352442963,1739110260213,-500.0,0.00010892,2]
[352442964,1739110260223,-500.0,0.00010892,2]
[352442965,1739110260234,-529.3,0.00010892,2]
[352442966,1739110260244,-966.53,0.00010892,2]
[352442967,1739110260255,-500.0,0.00010892,2]
[352442968,1739110260265,-500.0,0.00010892,2]
[352442969,1739110260276,-500.0,0.00010892,2]
[352442970,1739110260286,-579.4,0.00010892,2]
[352442971,1739110260296,-500.0,0.00010892,2]
[352442972,1739110260307,-500.0,0.00010892,2]
[352442973,1739110260317,-500.0,0.00010892,2]
[352442974,1739110260327,-500.0,0.00010892,2]
[352442975,1739110260338,-500.0,0.00010892,2]
[352442976,1739110260348,-650.25,0.00010892,2]
[352442977,1739110260358,-500.0,0.00010892,2]
[352442978,1739110260369,-1010.83,0.00010892,2]
[352442979,1739110260379,-500.0,0.00010892,2]
[352442980,1739110260390,-304.42,0.00010892,2]
[352442981,1739110260400,-500.0,0.00010892,2]
[352442982,1739110260410,-500.0,0.00010892,2]
[352442983,1739110260421,-500.0,0.00010892,2]
[352442984,1739110260432,-500.0,0.00010892,2]
[352442985,1739110260442,-500.0,0.00010892,2]
[352442986,1739110260453,-500.0,0.00010892,2]
[352442987,1739110260463,-500.0,0.00010892,2]
[352442988,1739110260472,-500.0,0.00010892,2]
[352442989,1739110260483,-500.0,0.00010892,2]
[352442990,1739110260493,-500.0,0.00010892,2]
[352442991,1739110260503,-510.41,0.00010892,2]
[352442992,1739110260514,-500.0,0.00010892,2]
[352442993,1739110260524,-500.0,0.00010892,2]
[352442994,1739110260535,-500.0,0.00010892,2]
[352442995,1739110260546,-517.98,0.00010892,2]
[352442996,1739110260556,-542.77,0.00010892,2]
[352442997,1739110260567,-500.0,0.00010892,2]
[352442998,1739110260578,-500.0,0.00010892,2]
[352442999,1739110260589,-294.46154134,0.00010892,2]
[352443000,1739110260599,-500.0,0.00010892,2]
[352443001,1739110260610,-500.0,0.00010892,2]
[352443002,1739110260620,-1002.29,0.00010892,2]
[352443003,1739110260631,-500.0,0.00010892,2]
[352443004,1739110260958,-500.0,0.00010892,2]
[352443005,1739110260983,-500.0,0.00010892,2]
[352443006,1739110260997,-500.0,0.00010892,2]
[352443007,1739110261006,-500.0,0.00010892,2]
[352443008,1739110261015,-501.33976948,0.00010892,2]
[352443009,1739110261024,-500.0,0.00010892,2]
[352443010,1739110261033,-500.0,0.00010892,2]
[352443011,1739110261042,-500.0,0.00010892,2]
[352443012,1739110261052,-696.68,0.00010892,2]
[352443013,1739110261064,-500.0,0.00010892,2]
[352443014,1739110261073,-500.0,0.00010892,2]
[352443015,1739110261083,-963.94,0.00010892,2]
[352443016,1739110261092,-500.0,0.00010892,2]
[352443017,1739110261102,-570.7,0.00010892,2]
[352443018,1739110261113,-500.0,0.00010892,2]
[352443019,1739110261123,-500.0,0.00010892,2]
[352443020,1739110261133,-500.0,0.00010892,2]
[352443021,1739110261142,-500.0,0.00010892,2]
[352443022,1739110261152,-612.80435912,0.00010892,2]
[352443023,1739110261162,-500.0,0.00010892,2]
[352443024,1739110261171,-925.9,0.00010892,2]
[352443025,1739110261180,-500.0,0.00010892,2]
[352443026,1739110261189,-707.28,0.00010892,2]
[352443027,1739110261198,-341.92637066,0.00010892,2]
[352443028,1739110261208,-500.0,0.00010892,2]
[352443029,1739110261224,-2690.19,0.00010892,2]
[352443030,1739110261233,-500.0,0.00010892,2]
[352443031,1739110261242,-500.0,0.00010892,2]
[352443032,1739110261251,-500.0,0.00010892,2]
[352443033,1739110261260,-500.0,0.00010892,2]
[352443034,1739110261269,-500.0,0.00010892,2]
[352443035,1739110261279,-500.0,0.00010892,2]
[352443036,1739110261290,-816.13,0.00010892,2]
[352443037,1739110261301,-537.91712387,0.00010892,2]
[352443038,1739110261312,-665.62,0.00010892,2]
[352443039,1739110261321,-500.0,0.00010892,2]
[352443040,1739110261330,-1133.06,0.00010892,2]
[352443041,1739110261339,-500.0,0.00010892,2]
[352443042,1739110261348,-500.0,0.00010892,2]
[352443043,1739110261357,-500.0,0.00010892,2]
[352443044,1739110261366,-691.68,0.00010892,2]
[352443045,1739110261375,-500.0,0.00010892,2]
[352443046,1739110261385,-682.77,0.00010892,2]
[352443047,1739110261394,-1660.92,0.00010892,2]
[352443048,1739110261403,-500.0,0.00010892,2]
[352443049,1739110261413,-505.25493776,0.00010892,2]
[352443050,1739110261422,-500.0,0.00010892,2]
[352443051,1739110261431,-500.0,0.00010892,2]
[352443052,1739110261441,-500.0,0.00010892,2]
[352443053,1739110261450,-500.0,0.00010892,2]
[352443054,1739110261459,-500.0,0.00010892,2]
[352443055,1739110261468,-500.0,0.00010892,2]
[352443056,1739110261477,-500.0,0.00010892,2]
[352443057,1739110261486,-500.0,0.00010892,2]
[352443058,1739110261495,-500.0,0.00010892,2]
[352443059,1739110261505,-557.49,0.00010892,2]
[352443060,1739110261514,-721.46,0.00010892,2]
[352443061,1739110261523,-500.0,0.00010892,2]
[352443062,1739110261531,-500.0,0.00010892,2]
[352443063,1739110261541,-500.0,0.00010892,2]
[352443064,1739110261550,-500.0,0.00010892,2]
[352443065,1739110261559,-500.0,0.00010892,2]
[352443066,1739110261568,-589.36,0.00010892,2]
[352443067,1739110261577,-678.09,0.00010892,2]
[352443068,1739110261586,-500.0,0.00010892,2]
[352443069,1739110261595,-1004.28,0.00010892,2]
[352443070,1739110261604,-500.0,0.00010892,2]
[352443071,1739110261614,-500.0,0.00010892,2]
[352443072,1739110261623,-500.0,0.00010892,2]
[352443073,1739110261632,-500.0,0.00010892,2]
[352443074,1739110261641,-500.0,0.00010892,2]
[352443075,1739110261650,-500.0,0.00010892,2]
[352443076,1739110261659,-508.63320035,0.00010892,2]
[352443077,1739110261668,-500.0,0.00010892,2]
[352443078,1739110261678,-877.14,0.00010892,2]
[352443079,1739110261687,-539.37,0.00010892,2]
[352443080,1739110261696,-500.0,0.00010892,2]
[352443081,1739110261706,-500.0,0.00010892,2]
[352443082,1739110261715,-500.0,0.00010892,2]
[352443083,1739110261724,-500.0,0.00010892,2]
[352443084,1739110261733,-502.18611636,0.00010892,2]
[352443085,1739110261742,-500.0,0.00010892,2]
[352443086,1739110261751,-500.0,0.00010892,2]
[352443087,1739110261760,-500.0,0.00010892,2]
[352443088,1739110261769,-500.0,0.00010892,2]
[352443089,1739110261778,-500.0,0.00010892,2]
[352443090,1739110261788,-1463.57,0.00010892,2]
[352443091,1739110261797,-500.0,0.00010892,2]
[352443092,1739110261807,-500.0,0.00010892,2]
[352443093,1739110261816,-500.0,0.00010892,2]
[352443094,1739110261825,-500.0,0.00010892,2]
[352443095,1739110261834,-500.0,0.00010892,2]
[352443096,1739110261843,-500.0,0.00010892,2]
[352443097,1739110261853,-524.32,0.00010892,2]
[352443098,1739110261862,-500.0,0.00010892,2]
[352443099,1739110261871,-500.0,0.00010892,2]
[352443100,1739110261880,-500.0,0.00010892,2]
[352443101,1739110261889,-500.0,0.00010892,2]
[352443102,1739110261899,-673.31,0.00010892,2]
[352443103,1739110261909,-500.0,0.00010892,2]
[352443104,1739110261918,-753.41,0.00010892,2]
[352443105,1739110261927,-572.02,0.00010892,2]
[352443106,1739110261937,-500.0,0.00010892,2]
[352443107,1739110261946,-500.0,0.00010892,2]
[352443108,1739110261955,-500.0,0.00010892,2]
[352443109,1739110261965,-500.0,0.00010892,2]
[352443110,1739110261974,-500.0,0.00010892,2]
[352443111,1739110261983,-500.0,0.00010892,2]
[352443112,1739110261992,-500.0,0.00010892,2]
[352443113,1739110262002,-500.0,0.00010892,2]
[352443114,1739110262012,-561.04270112,0.00010892,2]
[352443115,1739110262023,-500.0,0.00010892,2]
[352443116,1739110262032,-914.39,0.00010892,2]
[352443117,1739110262042,-500.0,0.00010892,2]
[352443118,1739110262052,-500.0,0.00010892,2]
[352443119,1739110262065,-588.77,0.00010892,2]
[352443120,1739110262075,-520.19,0.00010892,2]
[352443121,1739110262084,-500.0,0.00010892,2]
[352443122,1739110262093,-500.0,0.00010892,2]
[352443123,1739110262104,-500.0,0.00010892,2]
[352443124,1739110262114,-500.0,0.00010892,2]
[352443125,1739110262123,-500.0,0.00010892,2]
[352443126,1739110262132,-500.0,0.00010892,2]
[352443127,1739110262143,-500.0,0.00010892,2]
[352443128,1739110262153,-728.3,0.00010892,2]
[352443129,1739110262162,-606.95,0.00010892,2]
[352443130,1739110262171,-500.0,0.00010892,2]
[352443131,1739110262181,-500.0,0.00010892,2]
[352443132,1739110262191,-912.25,0.00010892,2]
[352443133,1739110262201,-500.0,0.00010892,2]
[352443134,1739110262210,-277.22296877,0.00010892,2]
[352443135,1739110262221,-500.0,0.00010892,2]
[352443136,1739110262230,-172.01675882,0.00010892,2]
[352443137,1739110262238,-500.0,0.00010892,2]
[352443138,1739110262247,-500.0,0.00010892,2]
[352443139,1739110262257,-558.53,0.00010892,2]
[352443140,1739110262267,-500.0,0.00010892,2]
[352443141,1739110262276,-432.69325414,0.00010893,2]
[352443142,1739110262285,-500.0,0.00010893,2]
[352443143,1739110262295,-403.76536751,0.00010893,2]
[352443144,1739110262304,-500.0,0.00010893,2]
[352443145,1739110262313,-500.0,0.00010893,2]
[352443146,1739110262322,-500.0,0.00010893,2]
[352443147,1739110262331,-311.45391284,0.00010893,2]
[352443148,1739110262340,-151.44191735,0.00010893,2]
[352443149,1739110262350,-509.18239019,0.00010893,2]
[352443150,1739110262359,-500.0,0.00010893,2]
[352443151,1739110262369,-500.0,0.00010893,2]
[352443152,1739110262378,-500.0,0.00010893,2]
[352443153,1739110262388,-500.0,0.00010893,2]
[352443154,1739110262397,-500.0,0.00010893,2]
[352443155,1739110262407,-500.0,0.00010893,2]
[352443156,1739110262416,-561.63782705,0.00010893,2]
[352443157,1739110262425,-156.39864357,0.000109,2]
[352443158,1739110262435,-150.0,0.00010921,2]
[352443159,1739110262445,-4000.0,0.00010959,2]
[352443160,1739110262456,-2798.66,0.00010959,2]
[352443161,1739110262467,-150.0,0.00010959,2]
[352443162,1739110262478,-2013.21,0.00011,2]
[352443163,1739110262488,-522.37,0.00011028,2]
[352443164,1739110262499,-500.0,0.00011028,2]
[352443165,1739110262510,-819.55,0.00011028,2]
[352443166,1739110262519,-978.83,0.00011028,2]
[352443167,1739110262530,-697.85,0.00011028,2]
[352443168,1739110262541,-1505.73,0.00011028,2]
[352443169,1739110262551,-500.0,0.00011028,2]
[352443170,1739110262561,-658.11,0.00011028,2]
[352443171,1739110262571,-500.0,0.00011028,2]
[352443172,1739110262580,-500.0,0.00011028,2]
[352443173,1739110262590,-958.54,0.00011028,2]